Workbook

Sheet Sheet1
C1: put column | E1: Trial | L1: time | M1: PV | N1: t-statistic | O1: 4Points | P1: SS Truth | U1: Additional Noise = | V1: 0
C2: 35 | E2: 250 | G2: Trial # | H2: Event | L2: 1 | M2: 9.5 | N2: 0.632455532 | O2: 0.5 | P2: 1 | U2: R-Crit Upper = | V2: 2.5
E3: Filter | G3: 0 | H3: SS + NID(0,s) | L3: 2 | M3: 9.5 | N3: 1.232882801 | O3: 0.5 | P3: 1 | Q3: rnd() or uprn = | R3: uprn | U3: R-Crit Lower = | V3: 1
C4: claim TS when SS | E4: 241.044 | G4: 1 | H4: Step 2 + NID(0,s) | L4: 3 | M4: 10 | N4: 1.83638562 | O4: 0.5 | P4: 1 | Q4: PV Trial = | R4: 6 | U4: Filter lag = | V4: 0.1
C5: claim SS when TS | E5: 37.4 | G5: 2 | H5: Step 2 + UID(0,s) | L5: 4 | M5: 9.5 | N5: 2.373854412 | O5: 0.5 | P5: 1 | Q5: noise sigma = | R5: 0.25 | U5: R-Crit Upper = | V5: 2
C6: delay to ID TS | E6: 33.332 | G6: 3 | H6: FO up 7 + NID(0,s) | L6: 5 | M6: 9.5 | N6: 2.8905555 | O6: 0.5 | P6: 1 | Q6: autocorrel lam = | R6: 0.4 | U6: R-Crit Lower = | V6: 1
C7: delay to return to SS | E7: 62.656 | G7: 4 | H7: oscillation(4 in 100) + NID(0,s) | L7: 6 | M7: 9.5 | N7: 3.385815293 | O7: 0.5 | P7: 1 | Q7: lag lam for #3, #6 = | R7: 0.98 | U7: Array N = | V7: 35
E8: Array | G8: 5 | H8: ramp(5 in 100) + NID(0,s) | L8: 7 | M8: 10 | N8: 3.893168146 | O8: 0.5 | P8: 1 | Q8: discretize interval = | R8: 0.5 | U8: SPC reject = | V8: 4
C9: claim TS when SS | E9: 296.188 | G9: 6 | H9: TO up 7 + NID(0,s) | L9: 8 | M9: 10 | N9: 4.387556417 | O9: 0.5 | P9: 1 | U9: SPC accept = | V9: 2
C10: claim SS when TS | E10: 31.888 | L10: 9 | M10: 10 | N10: 4.864657456 | O10: 0.5 | P10: 1 | Q10: Start Sample = | R10: 100 | U10: # Subwindows = | V10: 10
C11: delay to ID TS | E11: 27.436 | L11: 10 | M11: 9.5 | N11: 5 | O11: 0.5 | P11: 1 | Q11: Stop Sample = | R11: 200 | U11: # data per subW = | V11: 5
C12: delay to return to SS | E12: 67.416 | L12: 11 | M12: 9.5 | N12: 5 | O12: 0.5 | P12: 1 | Q12: Sampling Interval = | R12: 1 | U12: t-Crit Upper = | V12: 1
E13: XBarR | L13: 12 | M13: 10 | N13: 5 | O13: 0.5 | P13: 1 | U13: t-Crit Lower = | V13: 0.05
C14: claim TS when SS | E14: 434.992 | L14: 13 | M14: 10 | N14: 5 | O14: 0.5 | P14: 1 | U14: Fast EWMA lag = | V14: 0.2
C15: claim SS when TS | E15: 22.504 | L15: 14 | M15: 10 | N15: 5 | O15: 0.5 | P15: 1 | U15: Slow EWMA lag = | V15: 0.1
C16: delay to ID TS | E16: 20.028 | L16: 15 | M16: 10 | N16: 5 | O16: 0.5 | P16: 1 | U16: EWMV lag = | V16: 0.05
C17: delay to return to SS | E17: 186.596 | L17: 16 | M17: 10 | N17: 5 | O17: 0.5 | P17: 1 | U17: t-Crit Upper = | V17: 2
E18: MACD | L18: 17 | M18: 10 | N18: 5 | O18: 0.5 | P18: 1 | U18: t-Crit Lower = | V18: 1
C19: claim TS when SS | E19: 18.308 | L19: 18 | M19: 10 | N19: 5 | O19: 0.5 | P19: 1 | U19: N Data = | V19: 25
C20: claim SS when TS | E20: 65.036 | L20: 19 | M20: 10 | N20: 5 | O20: 0.5 | P20: 1 | U20: EWMA lag = | V20: 0.1
C21: delay to ID TS | E21: 54.548 | L21: 20 | M21: 9.5 | N21: 5 | O21: 0.5 | P21: 1
C22: delay to return to SS | E22: 9.48 | L22: 21 | M22: 9.5 | N22: 5 | O22: 0.5 | P22: 1
E23: 4Points | L23: 22 | M23: 9.5 | N23: 5 | O23: 0.5 | P23: 1
C24: claim TS when SS | E24: 37.912 | L24: 23 | M24: 10 | N24: 5 | O24: 0.5 | P24: 1
C25: claim SS when TS | E25: 51.824 | L25: 24 | M25: 10 | N25: 5 | O25: 0 | P25: 1
C26: delay to ID TS | E26: 50.536 | L26: 25 | M26: 9.5 | N26: 5 | O26: 0 | P26: 1
C27: delay to return to SS | E27: 26.976 | L27: 26 | M27: 9.5 | N27: 5 | O27: 0 | P27: 1
L28: 27 | M28: 9.5 | N28: 5 | O28: 0 | P28: 1
L29: 28 | M29: 9.5 | N29: 5 | O29: 0 | P29: 1
L30: 29 | M30: 10 | N30: 5 | O30: 0 | P30: 1
L31: 30 | M31: 10 | N31: 5 | O31: 0 | P31: 1
L32: 31 | M32: 10 | N32: 5 | O32: 0 | P32: 1
L33: 32 | M33: 10 | N33: 5 | O33: 0 | P33: 1
L34: 33 | M34: 9.5 | N34: 5 | O34: 0 | P34: 1
L35: 34 | M35: 9.5 | N35: 4.716973367 | O35: 0 | P35: 1
L36: 35 | M36: 9.5 | N36: 4.355561305 | O36: 0 | P36: 1
L37: 36 | M37: 9.5 | N37: 3.942902605 | O37: 0 | P37: 1
L38: 37 | M38: 9.5 | N38: 3.559810926 | O38: 0 | P38: 1
L39: 38 | M39: 9.5 | N39: 3.203967584 | O39: 0 | P39: 1
L40: 39 | M40: 10 | N40: 2.931965176 | O40: 0 | P40: 1
L41: 40 | M41: 10 | N41: 2.70731952 | O41: 0 | P41: 1
L42: 41 | M42: 9.5 | N42: 2.387464301 | O42: 0 | P42: 1
L43: 42 | M43: 10 | N43: 2.182379214 | O43: 0 | P43: 1
L44: 43 | M44: 10 | N44: 2.015166446 | O44: 0 | P44: 1
L45: 44 | M45: 9.5 | N45: 1.840482141 | O45: 0 | P45: 1
L46: 45 | M46: 9.5 | N46: 1.69946535 | O46: 0 | P46: 1
L47: 46 | M47: 10 | N47: 1.647608876 | O47: 0 | P47: 1
L48: 47 | M48: 9.5 | N48: 1.404740536 | O48: 0 | P48: 1
L49: 48 | M49: 9.5 | N49: 1.196374714 | O49: 0 | P49: 1
L50: 49 | M50: 10 | N50: 1.192247228 | O50: 0 | P50: 1
L51: 50 | M51: 10 | N51: 1.205546968 | O51: 0 | P51: 1
L52: 51 | M52: 10 | N52: 1.2205463 | O52: 0 | P52: 1
L53: 52 | M53: 9.5 | N53: 1.110313056 | O53: 0 | P53: 1
L54: 53 | M54: 9.5 | N54: 0.9138990388 | O54: 1 | P54: 1
L55: 54 | M55: 9.5 | N55: 0.7296416696 | O55: 1 | P55: 1
L56: 55 | M56: 10 | N56: 0.6624581504 | O56: 1 | P56: 1
L57: 56 | M57: 10 | N57: 0.6117009493 | O57: 1 | P57: 1
L58: 57 | M58: 10 | N58: 0.6861385202 | O58: 1 | P58: 1
L59: 58 | M59: 10 | N59: 0.7580240472 | O59: 1 | P59: 1
L60: 59 | M60: 9.5 | N60: 0.6861008705 | O60: 1 | P60: 1
L61: 60 | M61: 9.5 | N61: 0.6335321765 | O61: 1 | P61: 1
L62: 61 | M62: 10 | N62: 0.7016800566 | O62: 1 | P62: 1
L63: 62 | M63: 10 | N63: 0.7802518726 | O63: 1 | P63: 1
L64: 63 | M64: 10 | N64: 0.7204693774 | O64: 1 | P64: 1
L65: 64 | M65: 10 | N65: 0.6652673861 | O65: 1 | P65: 1
L66: 65 | M66: 10 | N66: 0.757212841 | O66: 1 | P66: 1
L67: 66 | M67: 10 | N67: 0.6991955845 | O67: 1 | P67: 1
L68: 67 | M68: 9.5 | N68: 0.4817426018 | O68: 1 | P68: 1
L69: 68 | M69: 9.5 | N69: 0.4448317326 | O69: 1 | P69: 1
L70: 69 | M70: 9.5 | N70: 0.4828126236 | O70: 1 | P70: 1
L71: 70 | M71: 10 | N71: 0.3679604604 | O71: 1 | P71: 1
L72: 71 | M72: 9.5 | N72: 0.3297189772 | O72: 1 | P72: 1
L73: 72 | M73: 9.5 | N73: 0.3876332606 | O73: 1 | P73: 1
L74: 73 | M74: 9.5 | N74: 0.3579330005 | O74: 1 | P74: 1
L75: 74 | M75: 9.5 | N75: 0.3842039021 | O75: 1 | P75: 1
L76: 75 | M76: 9.5 | N76: 0.5239364102 | O76: 1 | P76: 1
L77: 76 | M77: 9.5 | N77: 0.6573574439 | O77: 1 | P77: 1
L78: 77 | M78: 9.5 | N78: 0.7850647536 | O78: 1 | P78: 1
L79: 78 | M79: 10 | N79: 0.5309790395 | O79: 1 | P79: 1
L80: 79 | M80: 10 | N80: 0.3612177634 | O80: 1 | P80: 1
L81: 80 | M81: 9.5 | N81: 0.4892709515 | O81: 1 | P81: 1
L82: 81 | M82: 9.5 | N82: 0.6337388145 | O82: 1 | P82: 1
L83: 82 | M83: 9.5 | N83: 0.7718645299 | O83: 1 | P83: 1
L84: 83 | M84: 9.5 | N84: 0.7127246686 | O84: 1 | P84: 1
L85: 84 | M85: 9.5 | N85: 0.6581160729 | O85: 1 | P85: 1
L86: 85 | M86: 9.5 | N86: 0.6076915596 | O86: 1 | P86: 1
L87: 86 | M87: 9.5 | N87: 0.7679809129 | O87: 1 | P87: 1
L88: 87 | M88: 9.5 | N88: 0.9100193023 | O88: 1 | P88: 1
L89: 88 | M89: 9.5 | N89: 1.058031322 | O89: 1 | P89: 1
L90: 89 | M90: 9.5 | N90: 1.200359191 | O90: 1 | P90: 1
L91: 90 | M91: 9.5 | N91: 1.337585372 | O91: 1 | P91: 1
L92: 91 | M92: 9.5 | N92: 1.235100272 | O92: 1 | P92: 1
L93: 92 | M93: 10 | N93: 0.8401547724 | O93: 1 | P93: 1
L94: 93 | M94: 10 | N94: 0.5732367441 | O94: 1 | P94: 1
L95: 94 | M95: 10 | N95: 0.7080798897 | O95: 1 | P95: 1
L96: 95 | M96: 10 | N96: 0.6538271745 | O96: 1 | P96: 1
L97: 96 | M97: 10 | N97: 0.6495964461 | O97: 1 | P97: 1
L98: 97 | M98: 9.5 | N98: 0.5559251085 | O98: 1 | P98: 1
L99: 98 | M99: 9.5 | N99: 0.513330414 | O99: 1 | P99: 1
L100: 99 | M100: 10 | N100: 0.6733070441 | O100: 1 | P100: 1 | S100: 1
L101: 100 | M101: 9.5 | N101: 0.5817190716 | O101: 1 | P101: 1 | S101: 1 | T101: 1
L102: 101 | M102: 10 | N102: 0.720373485 | O102: 1 | P102: 1 | S102: 0.5833333333 | T102: 1
L103: 102 | M103: 9.5 | N103: 0.6279755148 | O103: 1 | P103: 1 | S103: 0.5 | T103: 0.5833333333
L104: 103 | M104: 10 | N104: 0.605553616 | O104: 1 | P104: 1 | S104: 0.5833333333 | T104: 0.5
L105: 104 | M105: 10 | N105: 0.767103537 | O105: 1 | P105: 1 | S105: 0.5 | T105: 0.5833333333
L106: 105 | M106: 9.5 | N106: 0.6711693378 | O106: 1 | P106: 1 | S106: 0.3333333333 | T106: 0.5
L107: 106 | M107: 9.5 | N107: 0.6197446901 | O107: 1 | P107: 1 | S107: 0.5 | T107: 0.3333333333
L108: 107 | M108: 9.5 | N108: 0.7705728954 | O108: 1 | P108: 1 | S108: 0.9166666667 | T108: 0.5
L109: 108 | M109: 9.5 | N109: 0.4932071699 | O109: 1 | P109: 1 | S109: 0.3333333333 | T109: 0.9166666667
L110: 109 | M110: 9.5 | N110: 0.3791998605 | O110: 1 | P110: 1 | S110: 0 | T110: 0.3333333333
L111: 110 | M111: 10 | N111: 0.5450904324 | O111: 1 | P111: 1 | S111: 0.5 | T111: 0
L112: 111 | M112: 10 | N112: 0.5894336681 | O112: 1 | P112: 1 | S112: 0.5833333333 | T112: 0.5
L113: 112 | M113: 10 | N113: 0.7716375056 | O113: 1 | P113: 1 | S113: 0.9166666667 | T113: 0.5833333333
L114: 113 | M114: 10 | N114: 0.9457875717 | O114: 1 | P114: 1 | S114: 0.4166666667 | T114: 0.9166666667
L115: 114 | M115: 9.5 | N115: 0.8167951765 | O115: 1 | P115: 1 | S115: 0.9166666667 | T115: 0.4166666667
L116: 115 | M116: 9.5 | N116: 0.9459914773 | O116: 1 | P116: 1 | S116: 0.5833333333 | T116: 0.9166666667
L117: 116 | M117: 10 | N117: 0.652607085 | O117: 1 | P117: 1 | S117: 0.75 | T117: 0.5833333333
L118: 117 | M118: 9.5 | N118: 0.3826464526 | O118: 1 | P118: 1 | S118: 0.25 | T118: 0.75
L119: 118 | M119: 9.5 | N119: 0.1345220938 | O119: 1 | P119: 1 | S119: 0.1666666667 | T119: 0.25
L120: 119 | M120: 10 | N120: 0.2728557498 | O120: 1 | P120: 1 | S120: 0.6666666667 | T120: 0.1666666667
L121: 120 | M121: 10 | N121: 0.4690041611 | O121: 1 | P121: 1 | S121: 0.9166666667 | T121: 0.6666666667
L122: 121 | M122: 9.5 | N122: 0.198434418 | O122: 1 | P122: 1 | S122: 0.6666666667 | T122: 0.9166666667
L123: 122 | M123: 9.5 | N123: 0.1192087031 | O123: 1 | P123: 1 | S123: 0.3333333333 | T123: 0.6666666667
L124: 123 | M124: 9.5 | N124: 0.266671901 | O124: 1 | P124: 1 | S124: 0.3333333333 | T124: 0.3333333333
L125: 124 | M125: 10 | N125: 0.4316153569 | O125: 1 | P125: 1 | S125: 0.5 | T125: 0.3333333333
L126: 125 | M126: 9.5 | N126: 0.3765917562 | O126: 1 | P126: 1 | S126: 0.4166666667 | T126: 0.5
L127: 126 | M127: 10 | N127: 0.1526237133 | O127: 1 | P127: 1 | S127: 0.3333333333 | T127: 0.4166666667
L128: 127 | M128: 10 | N128: 0.1409297633 | O128: 1 | P128: 1 | S128: 0.5833333333 | T128: 0.3333333333
L129: 128 | M129: 9.5 | N129: 0.1565293107 | O129: 1 | P129: 1 | S129: 0.9166666667 | T129: 0.5833333333
L130: 129 | M130: 9.5 | N130: 0.2959479894 | O130: 1 | P130: 1 | S130: 0.5 | T130: 0.9166666667
L131: 130 | M131: 10 | N131: 0.1325913453 | O131: 1 | P131: 1 | S131: 0.75 | T131: 0.5
L132: 131 | M132: 10 | N132: 0.2888605034 | O132: 1 | P132: 1 | S132: 0.75 | T132: 0.75
L133: 132 | M133: 10 | N133: 0.4778933908 | O133: 1 | P133: 1 | S133: 0.8333333333 | T133: 0.75
L134: 133 | M134: 10 | N134: 0.6579284008 | O134: 1 | P134: 1 | S134: 0.4166666667 | T134: 0.8333333333
L135: 134 | M135: 10 | N135: 0.6139326654 | O135: 1 | P135: 1 | S135: 0.75 | T135: 0.4166666667
L136: 135 | M136: 10 | N136: 0.5668934619 | O136: 1 | P136: 1 | S136: 0.8333333333 | T136: 0.75
L137: 136 | M137: 10 | N137: 0.7574364719 | O137: 1 | P137: 1 | S137: 0.75 | T137: 0.8333333333
L138: 137 | M138: 9.5 | N138: 0.4294510882 | O138: 1 | P138: 1 | S138: 0.8333333333 | T138: 0.75
L139: 138 | M139: 9.5 | N139: 0.3761011812 | O139: 1 | P139: 1 | S139: 0.75 | T139: 0.8333333333
L140: 139 | M140: 10 | N140: 0.5466387881 | O140: 1 | P140: 1 | S140: 0.6666666667 | T140: 0.75
L141: 140 | M141: 10 | N141: 0.5642273139 | O141: 1 | P141: 1 | S141: 0.5 | T141: 0.6666666667
L142: 141 | M142: 10 | N142: 0.6990393784 | O142: 1 | P142: 1 | S142: 0.6666666667 | T142: 0.5
L143: 142 | M143: 10 | N143: 0.7684243482 | O143: 1 | P143: 1 | S143: 0.4166666667 | T143: 0.6666666667
L144: 143 | M144: 10 | N144: 0.7095480719 | O144: 1 | P144: 1 | S144: 0.25 | T144: 0.4166666667
L145: 144 | M145: 10 | N145: 0.8019452787 | O145: 1 | P145: 1 | S145: 0.1666666667 | T145: 0.25
L146: 145 | M146: 10 | N146: 0.9986257267 | O146: 1 | P146: 1 | S146: 0.5 | T146: 0.1666666667
L147: 146 | M147: 10 | N147: 1.061808016 | O147: 1 | P147: 1 | S147: 0.5 | T147: 0.5
L148: 147 | M148: 10 | N148: 1.252163446 | O148: 1 | P148: 1 | S148: 0.5 | T148: 0.5
L149: 148 | M149: 10 | N149: 1.15622333 | O149: 1 | P149: 1 | S149: 0.5833333333 | T149: 0.5
L150: 149 | M150: 10 | N150: 1.353645266 | O150: 1 | P150: 1 | S150: 0.5 | T150: 0.5833333333
L151: 150 | M151: 10 | N151: 1.249929665 | O151: 1 | P151: 1 | S151: 0.25 | T151: 0.5
L152: 151 | M152: 10 | N152: 1.154160701 | O152: 1 | P152: 1 | S152: 0.3333333333 | T152: 0.25
L153: 152 | M153: 10 | N153: 1.37461505 | O153: 1 | P153: 1 | S153: 0.5 | T153: 0.3333333333
L154: 153 | M154: 9.5 | N154: 1.134799969 | O154: 1 | P154: 1 | S154: 0.25 | T154: 0.5
L155: 154 | M155: 9.5 | N155: 0.8180888331 | O155: 1 | P155: 1 | S155: 0.5833333333 | T155: 0.25
L156: 155 | M156: 9.5 | N156: 0.7554072896 | O156: 1 | P156: 1 | S156: 0.6666666667 | T156: 0.5833333333
L157: 156 | M157: 10 | N157: 0.6279007897 | O157: 1 | P157: 1 | S157: 0.4166666667 | T157: 0.6666666667
L158: 157 | M158: 9.5 | N158: 0.5293497292 | O158: 1 | P158: 1 | S158: 0.5833333333 | T158: 0.4166666667
L159: 158 | M159: 9.5 | N159: 0.7323480791 | O159: 1 | P159: 1 | S159: 0.9166666667 | T159: 0.5833333333
L160: 159 | M160: 10 | N160: 0.6213655402 | O160: 1 | P160: 1 | S160: 0.3333333333 | T160: 0.9166666667
L161: 160 | M161: 10 | N161: 0.5737568337 | O161: 1 | P161: 1 | S161: 0.5 | T161: 0.3333333333
L162: 161 | M162: 9.5 | N162: 0.7318686034 | O162: 1 | P162: 1 | S162: 0.4166666667 | T162: 0.5
L163: 162 | M163: 9.5 | N163: 0.9246939755 | O163: 1 | P163: 1 | S163: 0.5 | T163: 0.4166666667
L164: 163 | M164: 9.5 | N164: 1.109211199 | O164: 1 | P164: 1 | S164: 0.3333333333 | T164: 0.5
L165: 164 | M165: 9.5 | N165: 1.130152366 | O165: 1 | P165: 1 | S165: 0.6666666667 | T165: 0.3333333333
L166: 165 | M166: 9.5 | N166: 1.312367831 | O166: 1 | P166: 1 | S166: 0.75 | T166: 0.6666666667
L167: 166 | M167: 9.5 | N167: 1.487605209 | O167: 1 | P167: 1 | S167: 0.75 | T167: 0.75
L168: 167 | M168: 9.5 | N168: 1.656580567 | O168: 1 | P168: 1 | S168: 0.75 | T168: 0.75
L169: 168 | M169: 10 | N169: 1.390196496 | O169: 1 | P169: 1 | S169: 0.3333333333 | T169: 0.75
L170: 169 | M170: 10 | N170: 1.012987664 | O170: 1 | P170: 1 | S170: 0.6666666667 | T170: 0.3333333333
L171: 170 | M171: 10 | N171: 0.9012670848 | O171: 1 | P171: 1 | S171: 0.08333333333 | T171: 0.6666666667
L172: 171 | M172: 10 | N172: 0.8322124666 | O172: 1 | P172: 1 | S172: 0.5833333333 | T172: 0.08333333333
L173: 172 | M173: 9.5 | N173: 0.9629001996 | O173: 1 | P173: 1 | S173: 0.5833333333 | T173: 0.5833333333
L174: 173 | M174: 10 | N174: 0.8668401955 | O174: 1 | P174: 1 | S174: 0.5 | T174: 0.5833333333
L175: 174 | M175: 10 | N175: 1.056991581 | O175: 1 | P175: 1 | S175: 0.5833333333 | T175: 0.5
L176: 175 | M176: 9.5 | N176: 1.144098778 | O176: 1 | P176: 1 | S176: 0.6666666667 | T176: 0.5833333333
L177: 176 | M177: 10 | N177: 1.214781584 | O177: 1 | P177: 1 | S177: 0.4166666667 | T177: 0.6666666667
L178: 177 | M178: 10 | N178: 1.121705647 | O178: 1 | P178: 1 | S178: 0.9166666667 | T178: 0.4166666667
L179: 178 | M179: 10 | N179: 1.03576114 | O179: 1 | P179: 1 | S179: 0.25 | T179: 0.9166666667
L180: 179 | M180: 9.5 | N180: 0.6562798064 | O180: 1 | P180: 1 | S180: 0.5833333333 | T180: 0.25
L181: 180 | M181: 9.5 | N181: 0.6459103896 | O181: 1 | P181: 1 | S181: 0.3333333333 | T181: 0.5833333333
L182: 181 | M182: 9.5 | N182: 0.5964210694 | O182: 1 | P182: 1 | S182: 0.5833333333 | T182: 0.3333333333
L183: 182 | M183: 10 | N183: 0.5117365852 | O183: 1 | P183: 1 | S183: 0.8333333333 | T183: 0.5833333333
L184: 183 | M184: 10 | N184: 0.712328491 | O184: 1 | P184: 1 | S184: 0.6666666667 | T184: 0.8333333333
L185: 184 | M185: 10 | N185: 0.6577502502 | O185: 1 | P185: 1 | S185: 0.5833333333 | T185: 0.6666666667
L186: 185 | M186: 10 | N186: 0.5508756874 | O186: 1 | P186: 1 | S186: 0.5833333333 | T186: 0.5833333333
L187: 186 | M187: 10 | N187: 0.508667877 | O187: 1 | P187: 1 | S187: 0.3333333333 | T187: 0.5833333333
L188: 187 | M188: 10 | N188: 0.6719119704 | O188: 1 | P188: 1 | S188: 0.25 | T188: 0.3333333333
L189: 188 | M189: 10 | N189: 0.8930404288 | O189: 1 | P189: 1 | S189: 0.3333333333 | T189: 0.25
L190: 189 | M190: 10 | N190: 1.104308098 | O190: 1 | P190: 1 | S190: 0.4166666667 | T190: 0.3333333333
L191: 190 | M191: 10 | N191: 1.306654483 | O191: 1 | P191: 1 | S191: 0.5833333333 | T191: 0.4166666667
L192: 191 | M192: 10 | N192: 1.500951887 | O192: 1 | P192: 1 | S192: 0.6666666667 | T192: 0.5833333333
L193: 192 | M193: 9.5 | N193: 0.9780644958 | O193: 1 | P193: 1 | S193: 0.6666666667 | T193: 0.6666666667
L194: 193 | M194: 9.5 | N194: 0.6234752302 | O194: 1 | P194: 1 | S194: 0.5 | T194: 0.6666666667
L195: 194 | M195: 9.5 | N195: 0.4621059203 | O195: 1 | P195: 1 | S195: 0.9166666667 | T195: 0.5
L196: 195 | M196: 9.5 | N196: 0.2450306366 | O196: 1 | P196: 1 | S196: 0.6666666667 | T196: 0.9166666667
L197: 196 | M197: 9.5 | N197: 0.5282726504 | O197: 1 | P197: 1 | S197: 0 | T197: 0.6666666667
L198: 197 | M198: 9.5 | N198: 0.797658689 | O198: 1 | P198: 1 | S198: 0.1666666667 | T198: 0
L199: 198 | M199: 10 | N199: 0.6580812675 | O199: 1 | P199: 1 | S199: 0.4166666667 | T199: 0.1666666667
L200: 199 | M200: 10 | N200: 0.6450338527 | O200: 1 | P200: 1 | S200: 0.25 | T200: 0.4166666667
... 1002 more rows

Sheet Sheet2
A1: 250 realizations | C1: These trials are for each of several types of TS and SS transitions, and in each set, the far left is relatively unconfounded by noise or autocorrelation, and the far right is substantially confounded.
B2: test # | C2: 0 | D2: 0 | E2: 0 | F2: 0 | G2: 0 | H2: 5 | I2: 5 | J2: 5 | K2: 5 | L2: 5 | M2: 1 | N2: 1 | O2: 1 | P2: 1 | Q2: 1 | R2: 1 | S2: 4 | T2: 4 | U2: 4 | V2: 4 | W2: 4 | X2: 4 | Y2: 3 | Z2: 3 | AA2: 3 | AB2: 3 | AC2: 3 | AD2: 3 | AE2: 6 | AF2: 6 | AG2: 6 | AH2: 6 | AI2: 6
B3: sigma | C3: 1 | D3: 1 | E3: 1 | F3: 1 | G3: 1 | H3: 0 | I3: 0.25 | J3: 0.5 | K3: 1 | L3: 1.5 | M3: 0 | N3: 0.25 | O3: 0.5 | P3: 0.75 | Q3: 1 | R3: 1.5 | S3: 0 | T3: 0.5 | U3: 1 | V3: 1.5 | W3: 1 | X3: 1 | Y3: 0 | Z3: 0.25 | AA3: 0.5 | AB3: 1 | AC3: 2 | AD3: 3 | AE3: 0 | AF3: 0.25 | AG3: 0.5 | AH3: 0.25 | AI3: 0.25 | AN3: relative
B4: autocorrel | C4: 0 | D4: 0.1 | E4: 0.2 | F4: 0.3 | G4: 0.5 | H4: 0 | I4: 0 | J4: 0 | K4: 0 | L4: 0 | M4: 0 | N4: 0 | O4: 0 | P4: 0 | Q4: 0 | R4: 0 | S4: 0 | T4: 0 | U4: 0 | V4: 0 | W4: 0.2 | X4: 0.4 | Y4: 0 | Z4: 0 | AA4: 0 | AB4: 0 | AC4: 0 | AD4: 0 | AE4: 0 | AF4: 0 | AG4: 0 | AH4: 0.2 | AI4: 0.4 | AN4: rating
B5: discretization | C5: 0.5 | D5: 0.5 | E5: 0.5 | F5: 0.5 | G5: 0.5 | H5: 0.5 | I5: 0.5 | J5: 0.5 | K5: 0.5 | L5: 0.5 | M5: 0.5 | N5: 0.5 | O5: 0.5 | P5: 0.5 | Q5: 0.5 | R5: 0.5 | S5: 0.5 | T5: 0.5 | U5: 0.5 | V5: 0.5 | W5: 0.5 | X5: 0.5 | Y5: 0.5 | Z5: 0.5 | AA5: 0.5 | AB5: 0.5 | AC5: 0.5 | AD5: 0.5 | AE5: 0.5 | AF5: 0.5 | AG5: 0.5 | AH5: 0.5 | AI5: 0.5 | AK5: Best | AL5: Worst
C6: 0=no change | H6: 5=ramp | M6: 1=step | S6: 4=oscillation | Y6: 3=first-order lag | AE6: 6=third-order lag | AK6: Best if significant | AL6: Worst if significant
A7: total | B7: Filter | C7: 9.744 | D7: 34.028 | E7: 120.576 | F7: 301.024 | G7: 802.496 | H7: 94 | I7: 121.528 | J7: 155.716 | K7: 192.74 | L7: 200.3 | M7: 104 | N7: 123.096 | O7: 107.592 | P7: 97.576 | Q7: 97.576 | R7: 101.652 | S7: 12 | T7: 43.108 | U7: 441.252 | V7: 837.048 | W7: 89.688 | X7: 67.628 | Y7: 95 | Z7: 100.888 | AA7: 64.012 | AB7: 120.592 | AC7: 194.472 | AD7: 198.428 | AE7: 169 | AF7: 178.06 | AG7: 302.18 | AH7: 218.372 | AI7: 374.432 | AK7: 2 | AL7: 5 | AM7: =AK7-AL7 -> -3 | AN7: =(AM7-$AN$35)/($AM$35-$AN$35) -> 0.1333333333 | AO7: All data based on 250 trials
A8: claim TS when SS | C8: 9.744 | D8: 34.028 | E8: 120.576 | F8: 301.024 | G8: 802.496 | H8: 36 | I8: 44.784 | J8: 36.336 | K8: 9.548 | L8: 10.496 | M8: 51 | N8: 64.112 | O8: 54.956 | P8: 39.396 | Q8: 24.552 | R8: 11.58 | S8: 0 | T8: 0.284 | U8: 0.556 | V8: 0.692 | W8: 11.2 | X8: 54.528 | Y8: 60 | Z8: 49.636 | AA8: 23.888 | AB8: 12.064 | AC8: 7.028 | AD8: 8.696 | AE8: 52 | AF8: 17.22 | AG8: 7.548 | AH8: 82.04 | AI8: 241.044 | AK8: 1 | AL8: 2 | AM8: =AK8-AL8 -> -1 | AN8: =(AM8-$AN$36)/($AM$36-$AN$36) -> 0.2727272727 | AO8: "Significant" means difference in cumulative score is greater than 5
A9: claim SS when TS | C9: 0 | D9: 0 | E9: 0 | F9: 0 | G9: 0 | H9: 11 | I9: 19.128 | J9: 46.708 | K9: 93.4 | L9: 97.24 | M9: 1 | N9: 0.968 | O9: 0.952 | P9: 0.996 | Q9: 0.992 | R9: 1 | S9: 6 | T9: 26.556 | U9: 379.48 | V9: 755.216 | W9: 56.48 | X9: 7.968 | Y9: 3 | Z9: 5.58 | AA9: 13.308 | AB9: 62.072 | AC9: 95.42 | AD9: 96.268 | AE9: 48 | AF9: 84.668 | AG9: 200.512 | AH9: 54.504 | AI9: 37.4
A10: delay to ID TS | C10: 0 | D10: 0 | E10: 0 | F10: 0 | G10: 0 | H10: 11 | I10: 19.048 | J10: 44.8 | K10: 87.708 | L10: 92.056 | M10: 1 | N10: 1.336 | O10: 4.72 | P10: 27.58 | Q10: 55.996 | R10: 84.604 | S10: 6 | T10: 16.268 | U10: 61.216 | V10: 81.14 | W10: 22.008 | X10: 5.132 | Y10: 3 | Z10: 5.58 | AA10: 10.532 | AB10: 45.06 | AC10: 91.52 | AD10: 93.236 | AE10: 48 | AF10: 67.552 | AG10: 93.892 | AH10: 47.996 | AI10: 33.332
A11: delay to return to SS | C11: 0 | D11: 0 | E11: 0 | F11: 0 | G11: 0 | H11: 36 | I11: 38.568 | J11: 27.872 | K11: 2.084 | L11: 0.508 | M11: 51 | N11: 56.68 | O11: 46.964 | P11: 29.604 | Q11: 16.036 | R11: 4.468 | S11: 0 | T11: 0 | U11: 0 | V11: 0 | W11: 0 | X11: 0 | Y11: 29 | Z11: 40.092 | AA11: 16.284 | AB11: 1.396 | AC11: 0.504 | AD11: 0.228 | AE11: 21 | AF11: 8.62 | AG11: 0.228 | AH11: 33.832 | AI11: 62.656 | AO11: Left column in each set is uncounfounded
AO12: Right column in each set is fairly masked by either autocorrelation or noise amplitude
A13: total | B13: Array | C13: 5.164 | D13: 26.804 | E13: 134.188 | F13: 399.78 | G13: 905.844 | H13: 90 | I13: 108.488 | J13: 137.12 | K13: 189.296 | L13: 198.876 | M13: 68 | N13: 90.504 | O13: 87.48 | P13: 83.704 | Q13: 91.856 | R13: 99.336 | S13: 12 | T13: 51.996 | U13: 338.76 | V13: 718.224 | W13: 84.424 | X13: 78.7 | Y13: 134 | Z13: 105.684 | AA13: 62.184 | AB13: 98.984 | AC13: 183.768 | AD13: 197.18 | AE13: 173 | AF13: 176.716 | AG13: 277.052 | AH13: 237.964 | AI13: 422.928 | AK13: 2 | AL13: 3 | AM13: =AK13-AL13 -> -1 | AN13: =(AM13-$AN$35)/($AM$35-$AN$35) -> 0.2666666667
A14: claim TS when SS | C14: 5.164 | D14: 26.804 | E14: 134.188 | F14: 399.78 | G14: 905.844 | H14: 34 | I14: 37.824 | J14: 34.988 | K14: 9.956 | L14: 4.7 | M14: 33 | N14: 47.7 | O14: 43.428 | P14: 36.524 | Q14: 25.152 | R14: 9.328 | S14: 0 | T14: 0.316 | U14: 0.324 | V14: 0.184 | W14: 12.364 | X14: 69.372 | Y14: 64 | Z14: 50.476 | AA14: 20.408 | AB14: 9.7 | AC14: 3.016 | AD14: 4.464 | AE14: 55 | AF14: 21.064 | AG14: 5.652 | AH14: 94.592 | AI14: 296.188 | AK14: 1 | AL14: 3 | AM14: =AK14-AL14 -> -2 | AN14: =(AM14-$AN$36)/($AM$36-$AN$36) -> 0.1818181818
A15: claim SS when TS | C15: 0 | D15: 0 | E15: 0 | F15: 0 | G15: 0 | H15: 11 | I15: 18.204 | J15: 36.244 | K15: 89.644 | L15: 97.66 | M15: 1 | N15: 0.976 | O15: 0.984 | P15: 0.996 | Q15: 0.988 | R15: 1 | S15: 6 | T15: 36.832 | U15: 288.24 | V15: 641.648 | W15: 54.256 | X15: 6.372 | Y15: 3 | Z15: 6.64 | AA15: 14.788 | AB15: 53.248 | AC15: 93.444 | AD15: 97.276 | AE15: 48 | AF15: 74.86 | AG15: 179.6 | AH15: 53.304 | AI15: 31.888
A16: delay to ID TS | C16: 0 | D16: 0 | E16: 0 | F16: 0 | G16: 0 | H16: 11 | I16: 18.204 | J16: 35.548 | K16: 85.364 | L16: 95.932 | M16: 1 | N16: 1.452 | O16: 3.684 | P16: 15.724 | Q16: 44.48 | R16: 83.472 | S16: 6 | T16: 14.848 | U16: 50.196 | V16: 76.392 | W16: 17.804 | X16: 2.956 | Y16: 3 | Z16: 6.64 | AA16: 11.264 | AB16: 33.7 | AC16: 86.968 | AD16: 95.256 | AE16: 48 | AF16: 65.64 | AG16: 91.24 | AH16: 47.536 | AI16: 27.436
A17: delay to return to SS | C17: 0 | D17: 0 | E17: 0 | F17: 0 | G17: 0 | H17: 34 | I17: 34.256 | J17: 30.34 | K17: 4.332 | L17: 0.584 | M17: 33 | N17: 40.376 | O17: 39.384 | P17: 30.46 | Q17: 21.236 | R17: 5.536 | S17: 0 | T17: 0 | U17: 0 | V17: 0 | W17: 0 | X17: 0 | Y17: 64 | Z17: 41.928 | AA17: 15.724 | AB17: 2.336 | AC17: 0.34 | AD17: 0.184 | AE17: 22 | AF17: 15.152 | AG17: 0.56 | AH17: 42.532 | AI17: 67.416
A19: total | B19: X-Bar-R | C19: 6.764 | D19: 17.096 | E19: 53.68 | F19: 137.312 | G19: 589.692 | H19: 108 | I19: 152.908 | J19: 150.196 | K19: 181.376 | L19: 193.892 | M19: 95 | N19: 162.444 | O19: 118.808 | P19: 109.684 | Q19: 101.76 | R19: 102.38 | S19: 4 | T19: 19.256 | U19: 103.848 | V19: 379.068 | W19: 43.628 | X19: 44.476 | Y19: 156 | Z19: 204.756 | AA19: 113.896 | AB19: 77.488 | AC19: 164.216 | AD19: 195.476 | AE19: 266 | AF19: 250.816 | AG19: 198.584 | AH19: 376.892 | AI19: 664.12 | AK19: 12 | AL19: 13 | AM19: =AK19-AL19 -> -1 | AN19: =(AM19-$AN$35)/($AM$35-$AN$35) -> 0.2666666667
A20: claim TS when SS | C20: 6.764 | D20: 17.096 | E20: 53.68 | F20: 137.312 | G20: 589.692 | H20: 47 | I20: 76.456 | J20: 53.452 | K20: 29.836 | L20: 7.416 | M20: 49 | N20: 95.908 | O20: 61.804 | P20: 52.816 | Q20: 34.42 | R20: 10.656 | S20: 0 | T20: 0.232 | U20: 0.512 | V20: 0.58 | W20: 3.948 | X20: 29.244 | Y20: 77 | Z20: 116.476 | AA20: 54.268 | AB20: 20.152 | AC20: 5.736 | AD20: 3.64 | AE20: 87 | AF20: 92.336 | AG20: 18.7 | AH20: 201.332 | AI20: 434.992 | AK20: 8 | AL20: 10 | AM20: =AK20-AL20 -> -2 | AN20: =(AM20-$AN$36)/($AM$36-$AN$36) -> 0.1818181818
A21: claim SS when TS | C21: 0 | D21: 0 | E21: 0 | F21: 0 | G21: 0 | H21: 7 | I21: 11.516 | J21: 24.892 | K21: 65.076 | L21: 92.264 | M21: 0 | N21: 0.188 | O21: 0.832 | P21: 0.996 | Q21: 0.992 | R21: 0.996 | S21: 2 | T21: 9.512 | U21: 62.172 | V21: 313.652 | W21: 21 | X21: 7.668 | Y21: 1 | Z21: 1.86 | AA21: 6.664 | AB21: 23.008 | AC21: 82.816 | AD21: 96.44 | AE21: 46 | AF21: 48.32 | AG21: 92.164 | AH21: 36.48 | AI21: 22.504
A22: delay to ID TS | C22: 0 | D22: 0 | E22: 0 | F22: 0 | G22: 0 | H22: 7 | I22: 11.476 | J22: 24.892 | K22: 62.78 | L22: 90.648 | M22: 0 | N22: 0.376 | O22: 1.664 | P22: 6.328 | Q22: 35.58 | R22: 82.204 | S22: 2 | T22: 9.512 | U22: 41.164 | V22: 64.836 | W22: 18.68 | X22: 7.564 | Y22: 1 | Z22: 1.86 | AA22: 6.664 | AB22: 18.76 | AC22: 74.204 | AD22: 95.152 | AE22: 46 | AF22: 47.34 | AG22: 75.848 | AH22: 34.72 | AI22: 20.028
A23: delay to return to SS | C23: 0 | D23: 0 | E23: 0 | F23: 0 | G23: 0 | H23: 47 | I23: 53.46 | J23: 46.96 | K23: 23.684 | L23: 3.564 | M23: 46 | N23: 65.972 | O23: 54.508 | P23: 49.544 | Q23: 30.768 | R23: 8.524 | S23: 0 | T23: 0 | U23: 0 | V23: 0 | W23: 0 | X23: 0 | Y23: 77 | Z23: 84.56 | AA23: 46.3 | AB23: 15.568 | AC23: 1.46 | AD23: 0.244 | AE23: 87 | AF23: 62.82 | AG23: 11.872 | AH23: 104.36 | AI23: 186.596
A25: total | B25: MACD | C25: 0.164 | D25: 1.036 | E25: 3.608 | F25: 12.52 | G25: 86.792 | H25: 118 | I25: 83.224 | J25: 137.268 | K25: 192.828 | L25: 197.048 | M25: 112 | N25: 66.14 | O25: 58.612 | P25: 64.128 | Q25: 85.536 | R25: 97.276 | S25: 52 | T25: 238.112 | U25: 744.784 | V25: 957.868 | W25: 407.216 | X25: 222.464 | Y25: 154 | Z25: 53.632 | AA25: 40.58 | AB25: 142.712 | AC25: 195.808 | AD25: 197.284 | AE25: 205 | AF25: 185.14 | AG25: 327.32 | AH25: 153.812 | AI25: 147.372 | AK25: 7 | AL25: 12 | AM25: =AK25-AL25 -> -5 | AN25: =(AM25-$AN$35)/($AM$35-$AN$35) -> 0
A26: claim TS when SS | C26: 0.164 | D26: 1.036 | E26: 3.608 | F26: 12.52 | G26: 86.792 | H26: 48 | I26: 21.476 | J26: 11.252 | K26: 0.324 | L26: 0.184 | M26: 56 | N26: 32.38 | O26: 26.076 | P26: 14.048 | Q26: 5.268 | R26: 1.232 | S26: 0 | T26: 0.004 | U26: 0 | V26: 0.004 | W26: 0.396 | X26: 3.608 | Y26: 74 | Z26: 21.116 | AA26: 3.54 | AB26: 0.176 | AC26: 0.168 | AD26: 0.308 | AE26: 76 | AF26: 0.824 | AG26: 0.236 | AH26: 6.24 | AI26: 18.308 | AK26: 5 | AL26: 9 | AM26: =AK26-AL26 -> -4 | AN26: =(AM26-$AN$36)/($AM$36-$AN$36) -> 0
A27: claim SS when TS | C27: 0 | D27: 0 | E27: 0 | F27: 0 | G27: 0 | H27: 11 | I27: 20.24 | J27: 59.968 | K27: 98.084 | L27: 99.404 | M27: 0 | N27: 0.648 | O27: 0.932 | P27: 0.996 | Q27: 1 | R27: 1 | S27: 46 | T27: 219.456 | U27: 673.876 | V27: 866.348 | W27: 371.136 | X27: 204.548 | Y27: 3 | Z27: 6.372 | AA27: 22.464 | AB27: 81.732 | AC27: 98.396 | AD27: 98.836 | AE27: 48 | AF27: 109.664 | AG27: 230.492 | AH27: 82.416 | AI27: 65.036
A28: delay to ID TS | C28: 0 | D28: 0 | E28: 0 | F28: 0 | G28: 0 | H28: 11 | I28: 20.24 | J28: 55.368 | K28: 94.208 | L28: 97.436 | M28: 0 | N28: 0.776 | O28: 5.896 | P28: 35.368 | Q28: 74.248 | R28: 94.028 | S28: 6 | T28: 18.652 | U28: 70.908 | V28: 91.516 | W28: 35.684 | X28: 14.308 | Y28: 3 | Z28: 5.676 | AA28: 11.356 | AB28: 60.8 | AC28: 97.236 | AD28: 98.14 | AE28: 48 | AF28: 74.252 | AG28: 96.592 | AH28: 61.64 | AI28: 54.548
A29: delay to return to SS | C29: 0 | D29: 0 | E29: 0 | F29: 0 | G29: 0 | H29: 48 | I29: 21.268 | J29: 10.68 | K29: 0.212 | L29: 0.024 | M29: 56 | N29: 32.336 | O29: 25.708 | P29: 13.716 | Q29: 5.02 | R29: 1.016 | S29: 0 | T29: 0 | U29: 0 | V29: 0 | W29: 0 | X29: 0 | Y29: 74 | Z29: 20.468 | AA29: 3.22 | AB29: 0.004 | AC29: 0.008 | AD29: 0 | AE29: 33 | AF29: 0.4 | AG29: 0 | AH29: 3.516 | AI29: 9.48
A31: total | B31: 4Points | C31: 0 | D31: 0 | E31: 0.104 | F31: 1.224 | G31: 35.388 | H31: 114 | I31: 96.36 | J31: 107.736 | K31: 185.552 | L31: 198.34 | M31: 100 | N31: 78.636 | O31: 65.172 | P31: 54.664 | Q31: 67.936 | R31: 97.388 | S31: 20 | T31: 128.128 | U31: 481.84 | V31: 856.072 | W31: 275.872 | X31: 125.332 | Y31: 150 | Z31: 89.104 | AA31: 45.144 | AB31: 80.532 | AC31: 192.052 | AD31: 198.416 | AE31: 189 | AF31: 143.468 | AG31: 263.516 | AH31: 144.064 | AI31: 167.248 | AK31: 10 | AL31: 0 | AM31: =AK31-AL31 -> 10 | AN31: =(AM31-$AN$35)/($AM$35-$AN$35) -> 1
A32: claim TS when SS | C32: 0 | D32: 0 | E32: 0.104 | F32: 1.224 | G32: 35.388 | H32: 42 | I32: 28.708 | J32: 22.224 | K32: 1.564 | L32: 0.088 | M32: 48 | N32: 36.804 | O32: 28.584 | P32: 19.292 | Q32: 9.144 | R32: 0.844 | S32: 0 | T32: 0 | U32: 0 | V32: 0 | W32: 0 | X32: 0.72 | Y32: 68 | Z32: 36.12 | AA32: 8.76 | AB32: 0.052 | AC32: 0 | AD32: 0 | AE32: 59 | AF32: 5.752 | AG32: 0.148 | AH32: 16.98 | AI32: 37.912 | AK32: 7 | AL32: 0 | AM32: =AK32-AL32 -> 7 | AN32: =(AM32-$AN$36)/($AM$36-$AN$36) -> 1
A33: claim SS when TS | C33: 0 | D33: 0 | E33: 0 | F33: 0 | G33: 0 | H33: 15 | I33: 19.472 | J33: 31.672 | K33: 93.724 | L33: 99.54 | M33: 1 | N33: 1 | O33: 1 | P33: 1 | Q33: 1 | R33: 1 | S33: 10 | T33: 111.704 | U33: 430.948 | V33: 774 | W33: 249.528 | X33: 108.912 | Y33: 7 | Z33: 8.548 | AA33: 14.628 | AB33: 52.444 | AC33: 97.604 | AD33: 98.912 | AE33: 52 | AF33: 69.892 | AG33: 171.86 | AH33: 57.804 | AI33: 51.824
A34: delay to ID TS | C34: 0 | D34: 0 | E34: 0 | F34: 0 | G34: 0 | H34: 15 | I34: 19.472 | J34: 31.616 | K34: 88.804 | L34: 98.692 | M34: 3 | N34: 4.028 | O34: 7.004 | P34: 15.08 | Q34: 48.648 | R34: 94.7 | S34: 10 | T34: 16.424 | U34: 50.892 | V34: 82.072 | W34: 26.344 | X34: 15.7 | Y34: 7 | Z34: 8.548 | AA34: 13.128 | AB34: 28.032 | AC34: 94.448 | AD34: 99.504 | AE34: 52 | AF34: 63.08 | AG34: 91.508 | AH34: 55.464 | AI34: 50.536 | AO34: Fine tuning of relaxation rates and thresholds could improve any of the methods
A35: delay to return to SS | C35: 0 | D35: 0 | E35: 0 | F35: 0 | G35: 0 | H35: 42 | I35: 28.708 | J35: 22.224 | K35: 1.46 | L35: 0.02 | M35: 48 | N35: 36.804 | O35: 28.584 | P35: 19.292 | Q35: 9.144 | R35: 0.844 | S35: 0 | T35: 0 | U35: 0 | V35: 0 | W35: 0 | X35: 0 | Y35: 68 | Z35: 35.888 | AA35: 8.628 | AB35: 0.004 | AC35: 0 | AD35: 0 | AE35: 26 | AF35: 4.744 | AG35: 0 | AH35: 13.816 | AI35: 26.976 | AM35: =MAX(AM31,AM25,AM19,AM13,AM7) -> 10 | AN35: =MIN(AM31,AM25,AM19,AM13,AM7) -> -5 | AP35: And before a publication the coefficeints should be optimized
AL36: min | AM36: =MAX(AM32,AM26,AM20,AM14,AM8) -> 7 | AN36: =MIN(AM32,AM26,AM20,AM14,AM8) -> -4
A38: summary | B38: filter | C38: =C7 -> 9.744 | D38: =D7 -> 34.028 | E38: 120.576 | F38: 301.024 | G38: 802.496 | H38: 94 | I38: 121.528 | J38: 155.716 | K38: 192.74 | L38: 200.3 | M38: 104 | N38: 123.096 | O38: 107.592 | P38: 97.576 | Q38: 97.576 | R38: 101.652 | S38: 12 | T38: 43.108 | U38: 441.252 | V38: 837.048 | W38: 89.688 | X38: 67.628 | Y38: 95 | Z38: 100.888 | AA38: 64.012 | AB38: 120.592 | AC38: 194.472 | AD38: 198.428 | AE38: 169 | AF38: 178.06 | AG38: 302.18 | AH38: 218.372 | AI38: 374.432
B39: array | C39: =C13 -> 5.164 | D39: =D13 -> 26.804 | E39: 134.188 | F39: 399.78 | G39: 905.844 | H39: 90 | I39: 108.488 | J39: 137.12 | K39: 189.296 | L39: 198.876 | M39: 68 | N39: 90.504 | O39: 87.48 | P39: 83.704 | Q39: 91.856 | R39: 99.336 | S39: 12 | T39: 51.996 | U39: 338.76 | V39: 718.224 | W39: 84.424 | X39: 78.7 | Y39: 134 | Z39: 105.684 | AA39: 62.184 | AB39: 98.984 | AC39: 183.768 | AD39: 197.18 | AE39: 173 | AF39: 176.716 | AG39: 277.052 | AH39: 237.964 | AI39: 422.928
B40: XBarR | C40: =C19 -> 6.764 | D40: =D19 -> 17.096 | E40: 53.68 | F40: 137.312 | G40: 589.692 | H40: 108 | I40: 152.908 | J40: 150.196 | K40: 181.376 | L40: 193.892 | M40: 95 | N40: 162.444 | O40: 118.808 | P40: 109.684 | Q40: 101.76 | R40: 102.38 | S40: 4 | T40: 19.256 | U40: 103.848 | V40: 379.068 | W40: 43.628 | X40: 44.476 | Y40: 156 | Z40: 204.756 | AA40: 113.896 | AB40: 77.488 | AC40: 164.216 | AD40: 195.476 | AE40: 266 | AF40: 250.816 | AG40: 198.584 | AH40: 376.892 | AI40: 664.12 | AK40: Sum of | AR40: less
B41: MACD | C41: =C25 -> 0.164 | D41: =D25 -> 1.036 | E41: 3.608 | F41: 12.52 | G41: 86.792 | H41: 118 | I41: 83.224 | J41: 137.268 | K41: 192.828 | L41: 197.048 | M41: 112 | N41: 66.14 | O41: 58.612 | P41: 64.128 | Q41: 85.536 | R41: 97.276 | S41: 52 | T41: 238.112 | U41: 744.784 | V41: 957.868 | W41: 407.216 | X41: 222.464 | Y41: 154 | Z41: 53.632 | AA41: 40.58 | AB41: 142.712 | AC41: 195.808 | AD41: 197.284 | AE41: 205 | AF41: 185.14 | AG41: 327.32 | AH41: 153.812 | AI41: 147.372 | AK41: ranks | AQ41: count if | AR41: count if
B42: 4Points | C42: =C31 -> 0 | D42: =D31 -> 0 | E42: 0.104 | F42: 1.224 | G42: 35.388 | H42: 114 | I42: 96.36 | J42: 107.736 | K42: 185.552 | L42: 198.34 | M42: 100 | N42: 78.636 | O42: 65.172 | P42: 54.664 | Q42: 67.936 | R42: 97.388 | S42: 20 | T42: 128.128 | U42: 481.84 | V42: 856.072 | W42: 275.872 | X42: 125.332 | Y42: 150 | Z42: 89.104 | AA42: 45.144 | AB42: 80.532 | AC42: 192.052 | AD42: 198.416 | AE42: 189 | AF42: 143.468 | AG42: 263.516 | AH42: 144.064 | AI42: 167.248 | AK42: best is | AL42: count if | AM42: second | AN42: middle | AO42: second | AP42: count if | AQ42: best or | AR42: worst or
AK43: highest | AL43: worst | AM43: worst | AO43: best | AP43: best | AQ43: second | AR43: second
A44: rank | C44: =RANK(C38,C38:C42,0) -> 1 | D44: =RANK(D38,D38:D42,0) -> 1 | E44: 2 | F44: 2 | G44: 2 | H44: 4 | I44: 2 | J44: 1 | K44: 2 | L44: 1 | M44: 2 | N44: 2 | O44: 2 | P44: 2 | Q44: 2 | R44: 2 | S44: 3 | T44: 4 | U44: 3 | V44: 3 | W44: 3 | X44: 4 | Y44: 5 | Z44: 3 | AA44: 2 | AB44: 2 | AC44: 2 | AD44: 1 | AE44: 5 | AF44: 3 | AG44: 2 | AH44: 3 | AI44: 3 | AK44: =SUM(C44:AI44) -> 81 | AL44: =COUNTIF(C44:AI44,1) -> 5 | AM44: =COUNTIF(C44:AI44,2) -> 15 | AN44: =COUNTIF(C44:AI44,3) -> 8 | AO44: =COUNTIF(C44:AI44,4) -> 3 | AP44: =COUNTIF(C44:AI44,5) -> 2 | AQ44: =AO44+AP44 -> 5 | AR44: =AQ44-AL44-AM44 -> -15 | AS44: =(AR44-MIN(AR44:AR48))/(MAX(AR44:AR48)-MIN(AR44:AR48)) -> 0 | AT44: filter
A45: does not distinguish | C45: =RANK(C39,C38:C42,0) -> 3 | D45: =RANK(D39,D38:D42,0) -> 2 | E45: 1 | F45: 1 | G45: 1 | H45: 5 | I45: 3 | J45: 4 | K45: 3 | L45: 2 | M45: 5 | N45: 3 | O45: 3 | P45: 3 | Q45: 3 | R45: 3 | S45: 3 | T45: 3 | U45: 4 | V45: 4 | W45: 4 | X45: 3 | Y45: 4 | Z45: 2 | AA45: 3 | AB45: 3 | AC45: 4 | AD45: 4 | AE45: 4 | AF45: 4 | AG45: 3 | AH45: 2 | AI45: 2 | AK45: =SUM(C45:AI45) -> 101 | AL45: =COUNTIF(C45:AI45,1) -> 3 | AM45: =COUNTIF(C45:AI45,2) -> 5 | AN45: =COUNTIF(C45:AI45,3) -> 14 | AO45: =COUNTIF(C45:AI45,4) -> 9 | AP45: =COUNTIF(C45:AI45,5) -> 2 | AQ45: =AO45+AP45 -> 11 | AR45: =AQ45-AL45-AM45 -> 3 | AS45: =(AR45-MIN(AR44:AR48))/(MAX(AR44:AR48)-MIN(AR44:AR48)) -> 0.6666666667 | AT45: array
A46: relative position | C46: =RANK(C40,C38:C42,0) -> 2 | D46: =RANK(D40,D38:D42,0) -> 3 | E46: 3 | F46: 3 | G46: 3 | H46: 3 | I46: 1 | J46: 2 | K46: 5 | L46: 5 | M46: 4 | N46: 1 | O46: 1 | P46: 1 | Q46: 1 | R46: 1 | S46: 5 | T46: 5 | U46: 5 | V46: 5 | W46: 5 | X46: 5 | Y46: 1 | Z46: 1 | AA46: 1 | AB46: 5 | AC46: 5 | AD46: 5 | AE46: 1 | AF46: 1 | AG46: 5 | AH46: 1 | AI46: 1 | AK46: 96 | AL46: 13 | AM46: 2 | AN46: 5 | AO46: 1 | AP46: 12 | AQ46: 13 | AR46: -2 | AS46: =(AR46-MIN(AR44:AR48))/(MAX(AR44:AR48)-MIN(AR44:AR48)) -> 0.4814814815 | AT46: X-Bar-R
C47: =RANK(C41,C38:C42,0) -> 4 | D47: =RANK(D41,D38:D42,0) -> 4 | E47: 4 | F47: 4 | G47: 4 | H47: 1 | I47: 5 | J47: 3 | K47: 1 | L47: 4 | M47: 1 | N47: 5 | O47: 5 | P47: 4 | Q47: 4 | R47: 5 | S47: 1 | T47: 1 | U47: 1 | V47: 1 | W47: 1 | X47: 1 | Y47: 2 | Z47: 5 | AA47: 5 | AB47: 1 | AC47: 1 | AD47: 3 | AE47: 2 | AF47: 2 | AG47: 1 | AH47: 4 | AI47: 5 | AK47: 95 | AL47: 12 | AM47: 3 | AN47: 2 | AO47: 9 | AP47: 7 | AQ47: 16 | AR47: 1 | AS47: =(AR47-MIN(AR44:AR48))/(MAX(AR44:AR48)-MIN(AR44:AR48)) -> 0.5925925926 | AT47: MACD
C48: =RANK(C42,C38:C42,0) -> 5 | D48: =RANK(D42,D38:D42,0) -> 5 | E48: 5 | F48: 5 | G48: 5 | H48: 2 | I48: 4 | J48: 5 | K48: 4 | L48: 3 | M48: 3 | N48: 4 | O48: 4 | P48: 5 | Q48: 5 | R48: 4 | S48: 2 | T48: 2 | U48: 2 | V48: 2 | W48: 2 | X48: 2 | Y48: 3 | Z48: 4 | AA48: 4 | AB48: 4 | AC48: 3 | AD48: 2 | AE48: 3 | AF48: 5 | AG48: 4 | AH48: 5 | AI48: 4 | AK48: 121 | AL48: 0 | AM48: 8 | AN48: 5 | AO48: 10 | AP48: 10 | AQ48: 20 | AR48: 12 | AS48: =(AR48-MIN(AR44:AR48))/(MAX(AR44:AR48)-MIN(AR44:AR48)) -> 1 | AT48: 4Points
A50: relative rating | C50: =(C38-MAX(C38:C42))/(MIN(C38:C42)-MAX(C38:C42)) -> 0 | D50: =(D38-MAX(D38:D42))/(MIN(D38:D42)-MAX(D38:D42)) -> 0 | E50: 0.1015184511 | F50: 0.2477845021 | G50: 0.1187285744 | H50: 0.8571428571 | I50: 0.450318581 | J50: 0 | K50: 0.007684247293 | L50: 0 | M50: 0.1818181818 | N50: 0.4085811597 | O50: 0.1863246727 | P50: 0.2200654308 | Q50: 0.1236991485 | R50: 0.1426332288 | S50: 0.8333333333 | T50: 0.8910150967 | U50: 0.4735761449 | V50: 0.2087422253 | W50: 0.8733181513 | X50: 0.8699238151 | Y50: 1 | Z50: 0.6873031418 | AA50: 0.6803971848 | AB50: 0.3391389673 | AC50: 0.04228918714 | AD50: 0 | AE50: 1 | AF50: 0.6777583187 | AG50: 0.1952833706 | AH50: 0.6808459464 | AI50: 0.5605982026 | AK50: =SUM(C50:AI50) -> 13.05982212 | AL50: filter | AM50: I think this is the most telling and overall valid relative performance rating
A51: a proportion of | C51: =(C39-MAX(C38:C42))/(MIN(C38:C42)-MAX(C38:C42)) -> 0.4700328407 | D51: =(D39-MAX(D38:D42))/(MIN(D38:D42)-MAX(D38:D42)) -> 0.2122957564 | E51: 0 | F51: 0 | G51: 0 | H51: 1 | I51: 0.6374490557 | J51: 0.3875781576 | K51: 0.3084177436 | L51: 0.2222222222 | M51: 1 | N51: 0.74700947 | O51: 0.5204332514 | P51: 0.4721919302 | Q51: 0.2928098392 | R51: 0.5963949843 | S51: 0.8333333333 | T51: 0.8504039186 | U51: 0.6334860267 | V51: 0.4140359364 | W51: 0.8877960769 | X51: 0.8077173742 | Y51: 0.3606557377 | Z51: 0.6555676134 | AA51: 0.7053303508 | AB51: 0.6704280633 | AC51: 0.3811091416 | AD51: 0.4227642276 | AE51: 0.9587628866 | AF51: 0.6902783471 | AG51: 0.3904735272 | AH51: 0.5966979917 | AI51: 0.4667497504 | AK51: =SUM(C51:AI51) -> 17.59242555 | AL51: array | AM51: high numbers are best
A52: best = 1 | C52: =(C40-MAX(C38:C42))/(MIN(C38:C42)-MAX(C38:C42)) -> 0.3058292282 | D52: =(D40-MAX(D38:D42))/(MIN(D38:D42)-MAX(D38:D42)) -> 0.4975902198 | E52: 0.6004295815 | F52: 0.658547356 | G52: 0.3632027351 | H52: 0.3571428571 | I52: 0 | J52: 0.1150479366 | K52: 1 | L52: 1 | M52: 0.3863636364 | N52: 0 | O52: 0 | P52: 0 | Q52: 0 | R52: 0 | S52: 1 | T52: 1 | U52: 1 | V52: 1 | W52: 1 | X52: 1 | Y52: 0 | Z52: 0 | AA52: 0 | AB52: 1 | AC52: 1 | AD52: 1 | AE52: 0 | AF52: 0 | AG52: 1 | AH52: 0 | AI52: 0 | AK52: 15.28415355 | AL52: X-Bar-R
A53: to worst = 0 | C53: =(C41-MAX(C38:C42))/(MIN(C38:C42)-MAX(C38:C42)) -> 0.9831691297 | D53: =(D41-MAX(D38:D42))/(MIN(D38:D42)-MAX(D38:D42)) -> 0.9695544845 | E53: 0.9738671281 | F53: 0.9716576842 | G53: 0.940945895 | H53: 0 | I53: 1 | J53: 0.384493539 | K53: 0 | L53: 0.5074906367 | M53: 0 | N53: 1 | O53: 1 | P53: 0.8279898219 | Q53: 0.4796594134 | R53: 1 | S53: 0 | T53: 0 | U53: 0 | V53: 0 | W53: 0 | X53: 0 | Y53: 0.03278688525 | Z53: 1 | AA53: 1 | AB53: 0 | AC53: 0 | AD53: 0.3875338753 | AE53: 0.6288659794 | AF53: 0.6118045981 | AG53: 0 | AH53: 0.9581321834 | AI53: 1 | AK53: 16.65795125 | AL53: MACD
C54: =(C42-MAX(C38:C42))/(MIN(C38:C42)-MAX(C38:C42)) -> 1 | D54: =(D42-MAX(D38:D42))/(MIN(D38:D42)-MAX(D38:D42)) -> 1 | E54: 1 | F54: 1 | G54: 1 | H54: 0.1428571429 | I54: 0.8114918776 | J54: 1 | K54: 0.6353475375 | L54: 0.3058676654 | M54: 0.2727272727 | N54: 0.8702442266 | O54: 0.8910226593 | P54: 1 | Q54: 1 | R54: 0.9780564263 | S54: 0.6666666667 | T54: 0.5025404832 | U54: 0.4102500094 | V54: 0.1758742225 | W54: 0.3612440455 | X54: 0.5457221835 | Y54: 0.09836065574 | Z54: 0.7652788439 | AA54: 0.9377489225 | AB54: 0.9533300626 | AC54: 0.1188908584 | AD54: 0.00406504065 | AE54: 0.793814433 | AF54: 1 | AG54: 0.4956189411 | AH54: 1 | AI54: 0.9615363775 | AK54: 22.69855655 | AL54: 4Points
AK56: =1-(AK50-MAX(AK50:AK54))/(MIN(AK50:AK54)-MAX(AK50:AK54)) -> 0 | AL56: filter | AM56: proportion of worst to best rating of the sum of relative ratings
AK57: =1-(AK51-MAX(AK50:AK54))/(MIN(AK50:AK54)-MAX(AK50:AK54)) -> 0.4702488138 | AL57: array | AM57: Closely related to my best and worst if significant above.
AK58: =1-(AK52-MAX(AK50:AK54))/(MIN(AK50:AK54)-MAX(AK50:AK54)) -> 0.230770071 | AL58: X-Bar-R | AM58: I like this best. Simple, sensible, and consistent.
AK59: =1-(AK53-MAX(AK50:AK54))/(MIN(AK50:AK54)-MAX(AK50:AK54)) -> 0.3732989178 | AL59: MACD
AK60: =1-(AK54-MAX(AK50:AK54))/(MIN(AK50:AK54)-MAX(AK50:AK54)) -> 1 | AL60: 4Points
AK62: =AK50/MAX($AK$50:$AK$54) -> 0.5753591463 | AL62: filter | AM62: proportion of best
AK63: =AK51/MAX($AK$50:$AK$54) -> 0.775046004 | AL63: array
AK64: 0.6733535463 | AL64: X-Bar-R
AK65: 0.7338771174 | AL65: MACD
AK66: 1 | AL66: 4Points
AM68: Depending on the mertic of performance the relative goodness rating shifts, but overall
AN69: 4Points is best.
AN70: Array, second best, is tied with 4Points for not worst.
AN71: Filter is worst. But simplest and fully adequate to accept SS if noise is uncorrelated.
AM72: Performance also depends on coefficient values within the method.
AM73: For particular categories of situations, one could be better than the others.
AN74: 4Points was best for autocorrelation in the data
AN75: X-Bar-R is best for oscillation
AM76: These tests investigate changes in noise along with autocorrelation, but not with change in discretization
AN77: Perhaps I should eliminate the trials when all are nearly disfunctional, and replace it with a combination
